[Event "44th Chess Olympiad Open 2022"]
[Site "Chennai"]
[Date "2022.07.30"]
[Round "2.32"]
[White "Okeke Issac"]
[Black "Quesada Perez, Yasser"]
[Result "0-1"]
[ECO "B33"]
[WhiteElo "2204"]
[BlackElo "2568"]
[Annotator "TA"]
[PlyCount "74"]
[EventDate "2022.07.29"]
[EventType "team-tourn"]
[EventCountry "IND"]
[SourceTitle "playchess.com"]
[Source "ChessBase"]
[SourceQuality "1"]
[WhiteTeam "Nigeria"]
[BlackTeam "Cuba"]
[WhiteTeamCountry "NGR"]
[BlackTeamCountry "CUB"]
[TimeControl "40/5400+30:1800+30"]

{[%evp 15,74,31,29,31,42,24,33,54,37,41,33,27,15,7,33,23,20,21,77,69,108,110,91,106,104,99,103,114,106,114,113,117,97,74,74,74,88,63,94,88,79,77,148,132,140,148,145,0,128,0,0,-401,-412,-405,-402,-345,-85,-470,-255,-637,-611]} 1. e4 {[%emt 0:00:05]} c5 {[%emt 0:00:06]} 2. Nf3 {[%emt 0:00:09]} Nc6 {[%emt 0:00:05]} 3. d4 {[%emt 0:00:07]} cxd4 {[%emt 0:00:07]} 4. Nxd4 {[%emt 0:00:04]} Qb6 {[%emt 0:00:07]} 5. Nb3 {[%emt 0:00:20]} Nf6 {[%emt 0:00:05]} 6. Nc3 {[%emt 0:00:06]} e6 {[%emt 0:00:05]} 7. Qe2 {[%emt 0:00:23]} Bb4 {[%emt 0:00:22]} 8. Bd2 {[%emt 0:00:37]} O-O {[%emt 0:00:13]} 9. a3 {[%emt 0:00:09] B33: Sicilian: Pelikan and Sveshnikov Variations.} Be7 {[%emt 0:00:12]} 10. O-O-O {[%emt 0:00:10]} d5 {[%emt 0:00:16]} 11. exd5 {[%emt 0:00:18] White is slightly better.} Nxd5 {[%emt 0:02:51]} 12. Nxd5 {[%emt 0:02:15]} exd5 {[%emt 0:00:05]} 13. Be3 {[%emt 0:00:09]} Qc7 {[%emt 0:01:07] [#]} 14. f4 $146 {[%emt 0:09:43]} ({Predecessor:} 14. g3 Rd8 15. Bg2 Bf5 16. Rxd5 Rxd5 17. Bxd5 Rc8 18. Bf4 Qb6 19. Re1 h6 20. Be3 {1-0 (26) Rodshtein,M (2664)-Landa,K (2640) Germany 2013}) 14... Re8 {[%emt 0:04:24]} 15. Qf3 {[%emt 0:12:25]} Bd6 {[%emt 0:09:19][%cal Oe8e3]} 16. Kb1 {[%emt 0:01:54]} (16. Rxd5 $2 Rxe3 $1 {[%mdl 512]} 17. Qd1 (17. Qxe3 $2 Bxf4 18. Qd2 Be6 $19) 17... Bxf4 $19) 16... Qe7 {[%emt 0:03:09] [#]} (16... Bf5 $11 {remains equal.} 17. Bd3 Be4 18. Bxe4 dxe4) 17. Bc1 $1 $16 {[%emt 0:07:47]} (17. Qxd5 Bxa3 18. Bc5 Bxc5 19. Qxc5 Bg4 $15) (17. Rxd5 Qxe3 18. Rxd6 Qxf3 19. gxf3 Re1+ 20. Nc1 Bh3 $17) 17... a5 {[%emt 0:30:00]} 18. Bb5 {[%emt 0:20:51]} ({Much less strong is} 18. Qxd5 a4 19. Nd4 (19. Qxd6 axb3 20. Qxe7 bxc2+ 21. Kxc2 Rxe7 $16) 19... Bc5) (18. Rxd5 Be6 $14) 18... Qc7 {[%emt 0:09:41]} 19. Rxd5 {[%emt 0:05:03]} Be6 {[%emt 0:00:09]} 20. Rdd1 {[%emt 0:10:38]} a4 {[%emt 0:05:15]} 21. Nd4 {[%emt 0:05:04]} Nxd4 {[%emt 0:00:13]} 22. Rxd4 {[%emt 0:00:07]} Qb6 {[%emt 0:02:54][%csl LRb5,LRd4]} 23. Qd3 {[%emt 0:06:44]} Bc5 {[%emt 0:03:36]} 24. Bxe8 {[%emt 0:11:44][%cal Od4a4]} Bxd4 {[%emt 0:00:08]} 25. Bb5 {[%emt 0:10:19] f5 is the strong threat.} g6 {[%emt 0:10:45] Against f5} 26. Rd1 {[%emt 0:00:00] Black must now prevent f5.} Bf6 {[%emt 0:00:32]} 27. Be3 {[%emt 0:00:00]} Qa5 {[%emt 0:00:00] Threatens to win with ...Rd8.} 28. Qe2 {[%emt 0:00:00]} Qc7 {[%emt 0:02:20]} (28... Bg4 $142 29. Qxg4 Qxb5) 29. g4 {[%emt 0:00:00]} Ra5 {[%emt 0:03:37][%cal Oe6g4]} 30. Bd2 {[%emt 0:00:00]} Ra8 {[%emt 0:02:02]} 31. Be3 {[%emt 0:00:00]} (31. Bc1 $16) 31... Rc8 {[%emt 0:03:58]} (31... Ra5 $1 $11 {keeps the balance.}) 32. Bxa4 {[%emt 0:00:00]} (32. f5 $16 gxf5 33. gxf5 Bxf5 34. Bxa4) 32... Bxb2 $1 $40 {[%emt 0:00:03][%mdl 192] Decoy. Black has some attack.} 33. Kxb2 {[%emt 0:00:00][%mdl 8192]} (33. Bd4 $11 {and White stays safe.} Bxd4 34. Rxd4) 33... Qc3+ $19 {[%emt 0:00:02]} 34. Kc1 {[%emt 0:00:00]} ({Reject} 34. Kb1 Qxa3 35. c3 Qxa4 $19) 34... Qxa3+ {[%emt 0:00:16]} 35. Kd2 {[%emt 0:00:12][%cal Oe3d4] And now Bd4! would win.} Qxa4 {[%emt 0:01:45]} (35... Qc3+ $19 {is more deadly.} 36. Kc1 Bc4) 36. Rc1 $2 {[%emt 0:00:35][%mdl 8192]} (36. Ke1 $17) 36... Qe4 {[%emt 0:01:10]} (36... Re8 $142 {Hoping for ...Bc4.} 37. Qg2 Qa3) 37. h3 $2 {[%emt 0:00:30]} (37. Qd3 Qg2+ 38. Qe2 Qd5+ 39. Ke1 Qh1+ 40. Qf1 Qxh2 41. Qg1 Qh4+ 42. Qf2 Qxg4 43. Bd4) 37... Rd8+ {[%emt 0:00:23] Weighted Error Value: White=0.65/Black=0.45} 0-1

[Event "44th Chess Olympiad Open 2022"]
[Site "Chennai"]
[Date "2022.07.30"]
[Round "2.33"]
[White "Dragnev, Valentin"]
[Black "Berend, Elvira"]
[Result "1/2-1/2"]
[ECO "D40"]
[WhiteElo "2557"]
[BlackElo "2333"]
[Annotator "TA"]
[PlyCount "84"]
[EventDate "2022.07.29"]
[EventType "team-tourn"]
[EventCountry "IND"]
[SourceTitle "playchess.com"]
[Source "ChessBase"]
[SourceQuality "1"]
[WhiteTeam "Austria"]
[BlackTeam "Luxembourg"]
[WhiteTeamCountry "AUT"]
[BlackTeamCountry "LUX"]
[TimeControl "40/5400+30:1800+30"]

{[%evp 25,84,10,11,8,17,15,33,27,72,0,0,0,0,0,0,0,0,0,0,0,31,35,42,42,59,39,48,26,16,0,0,0,0,0,0,0,0,0,0,0,0,0,0,0,0,-14,0,0,0,-1,0,0,0,0,0,0,0,0,0,0,0]} 1. d4 {[%emt 0:00:04]} Nf6 {[%emt 0:00:06]} 2. c4 {[%emt 0:00:04]} e6 {[%emt 0:00:07]} 3. Nf3 {[%emt 0:00:06]} d5 {[%emt 0:00:08]} 4. Nc3 {[%emt 0:00:34]} c5 {[%emt 0:00:26]} 5. e3 {[%emt 0:02:30]} Nc6 {[%emt 0:00:24]} 6. a3 {[%emt 0:01:59]} a6 {[%emt 0:00:53]} 7. dxc5 {[%emt 0:05:57]} Bxc5 {[%emt 0:01:22]} 8. b4 {[%emt 0:00:07]} Ba7 {[%emt 0:00:09]} 9. Bb2 {[%emt 0:01:41]} O-O {[%emt 0:00:19]} 10. Qc2 {[%emt 0:03:13]} Qe7 {[%emt 0:05:30]} 11. Rd1 {[%emt 0:11:45]} Rd8 {[%emt 0:08:00]} 12. Be2 {[%emt 0:00:49]} dxc4 {[%emt 0:03:49]} 13. Rxd8+ {[%emt 0:07:05]} Nxd8 {[%emt 0:00:26]} 14. Ne4 {[%emt 0:11:14] D40: Queen's Gambit Declined: Semi-Tarrasch with 5 e3.} Nxe4 {[%emt 0:09:16]} 15. Qxe4 {[%emt 0:00:06]} Bd7 {[%emt 0:00:22][%cal Ob7b5]} 16. Bxc4 {[%emt 0:02:08] White is slightly better.} Rc8 {[%emt 0:04:08][%cal Of7f5] [#]} 17. Ne5 {[%emt 0:03:59] White is much more active.} (17. Bb3 $1 $16) 17... Bb5 $11 {[%emt 0:01:14]} 18. Bxb5 {[%emt 0:02:53]} axb5 {[%emt 0:00:11] [#]} 19. Qd3 $146 {[%emt 0:03:00]} ({Predecessor:} 19. O-O f6 20. Nf3 {½-½ (20) Ross,D (2318)-Vera Gonzalez Quevedo,R (2509) Montreal 2003}) 19... f6 {[%emt 0:11:41]} 20. Nf3 {[%emt 0:01:46]} Nf7 {[%emt 0:02:02][%cal Bd8f7,Bf7d6,Bd6c4][%mdl 32]} 21. O-O {[%emt 0:01:56]} Nd6 {[%emt 0:01:48]} 22. Bd4 {[%emt 0:03:13]} b6 {[%emt 0:02:00]} 23. e4 {[%emt 0:03:00]} e5 {[%emt 0:02:52]} 24. Be3 {[%emt 0:00:35]} Qe6 {[%emt 0:01:19]} 25. h3 {[%emt 0:07:28]} Nc4 {[%emt 0:05:01]} 26. Nh4 {[%emt 0:01:28]} g6 {[%emt 0:07:21]} 27. Rd1 {[%emt 0:04:56] The position is equal.} Bb8 {[%emt 0:01:37]} 28. Qd7 {[%emt 0:10:17]} Qxd7 {[%emt 0:00:10]} 29. Rxd7 {[%emt 0:00:01]} Bd6 {[%emt 0:00:32]} 30. Bxb6 {[%emt 0:01:45]} Bf8 {[%emt 0:00:15]} 31. Bd8 {[%emt 0:02:15]} Bg7 {[%emt 0:01:28]} 32. Be7 {[%emt 0:02:16]} Nxa3 {[%emt 0:00:16]} 33. Bc5 {[%emt 0:00:56]} Bf8 {[%emt 0:00:56]} 34. Bxf8 {[%emt 0:01:34]} Rxf8 {[%emt 0:00:09][%mdl 4096] Endgame KRN-KRN} 35. Ra7 {[%emt 0:00:25]} Nc2 {[%emt 0:01:30]} 36. Rb7 {[%emt 0:00:26] Prevents Rb8.} Nxb4 {[%emt 0:00:18]} 37. Rxb5 {[%emt 0:00:05]} Nc2 {[%emt 0:01:53]} 38. Nf3 {[%emt 0:00:23]} Rd8 {[%emt 0:00:15]} 39. Rb6 {[%emt 0:00:25]} Kg7 {[%emt 0:00:50]} 40. Rb7+ {[%emt 0:00:11]} Kg8 {[%emt 0:00:10]} 41. Rb6 {[%emt 0:30:17]} Kg7 {[%emt 0:30:06]} 42. Rb7+ {[%emt 0:00:05]} Kg8 {[%emt 0:00:05] Weighted Error Value: White=0.05 (flawless) /Black=0.04 (flawless)} 1/2-1/2

[Event "44th Chess Olympiad Open 2022"]
[Site "Chennai"]
[Date "2022.07.30"]
[Round "2.33"]
[White "Schartz, Alain"]
[Black "Horvath, Dominik"]
[Result "0-1"]
[ECO "B22"]
[WhiteElo "2086"]
[BlackElo "2488"]
[Annotator "TA"]
[PlyCount "72"]
[EventDate "2022.07.29"]
[EventType "team-tourn"]
[EventCountry "IND"]
[SourceTitle "playchess.com"]
[Source "ChessBase"]
[SourceQuality "1"]
[WhiteTeam "Luxembourg"]
[BlackTeam "Austria"]
[WhiteTeamCountry "LUX"]
[BlackTeamCountry "AUT"]
[TimeControl "40/5400+30:1800+30"]

{[%evp 12,72,1,7,-1,0,20,20,14,27,32,-1,0,0,-3,0,0,-22,-20,-20,-11,-10,0,-40,-41,-61,-29,-24,-27,-47,0,0,0,-58,-58,-122,-124,-149,-86,-95,-72,-75,-75,-129,-135,-227,-195,-285,-278,-386,-373,-570,-380,-537,-529,-506,-488,-808,-804,-791,-608,-1552,-1543]} 1. e4 {[%emt 0:00:03][%cal Be2e4,Be4e5][%mdl 32] ChessBase II} c5 {[%emt 0:00:20]} 2. Nf3 {[%emt 0:00:24]} Nc6 {[%emt 0:00:05]} 3. c3 {[%emt 0:00:46]} Nf6 {[%emt 0:00:08]} 4. e5 {[%emt 0:01:33]} Nd5 {[%emt 0:00:05]} 5. d4 {[%emt 0:01:08]} cxd4 {[%emt 0:00:05]} 6. cxd4 {[%emt 0:01:16]} d6 {[%emt 0:00:06]} 7. Bc4 {[%emt 0:03:18]} dxe5 {[%emt 0:01:28] B22: Sicilian: 2 c3.} 8. Nxe5 {[%emt 0:12:41]} Be6 {[%emt 0:15:49]} 9. O-O {[%emt 0:17:02]} g6 {[%emt 0:15:57] The position is equal.} 10. Bb5 {[%emt 0:15:51]} Rc8 {[%emt 0:07:33]} 11. Qa4 {[%emt 0:08:48]} a6 {[%emt 0:05:17]} 12. Bxc6+ {[%emt 0:08:32]} bxc6 {[%emt 0:00:06] [#]} 13. Nc3 $146 {[%emt 0:00:35]} ({Predecessor:} 13. Rd1 Bg7 14. Qxa6 O-O 15. a3 c5 16. Qe2 cxd4 17. b4 d3 18. Qe1 Rc2 19. Bg5 Re2 {0-1 (21) Gisolf,R-Rout,I ICCF corr 1985 Corr Nr. 1 [ChessBase II]}) 13... Bg7 {[%emt 0:01:18]} 14. Nxd5 {[%emt 0:01:18]} Qxd5 {[%emt 0:02:31]} 15. Be3 {[%emt 0:03:41]} O-O {[%emt 0:06:57]} 16. b4 {[%emt 0:07:03] Prevents c5.} Qb5 {[%emt 0:02:28]} 17. Qxb5 {[%emt 0:02:50]} cxb5 {[%emt 0:00:38]} 18. a4 {[%emt 0:01:38]} Rc3 {[%emt 0:04:40]} (18... f6 $5 {[%cal Rf6e5]} 19. Nf3 Rc4 20. axb5 axb5 $17) 19. axb5 {[%emt 0:01:05]} axb5 {[%emt 0:00:03]} 20. Ra7 {[%emt 0:01:23]} Re8 {[%emt 0:03:12]} (20... Rd8 $15) 21. Rb7 $11 {[%emt 0:03:16]} f6 {[%emt 0:00:35]} 22. Nf3 {[%emt 0:01:52]} (22. Nd7 $1 $11) 22... Rb3 $36 {[%emt 0:00:45][%mdl 2048] Black has good play.} 23. Bd2 {[%emt 0:01:17]} (23. Re1 $15) 23... Bd5 $17 {[%emt 0:01:30][%csl LRb7,LRf3]} 24. Rb6 {[%emt 0:02:58]} g5 {[%emt 0:07:27]} ({Better is} 24... Ra8 25. Re1 Ra2 26. Rb8+ Kf7) 25. Rc1 {[%emt 0:01:21]} Bc4 {[%emt 0:01:02]} 26. h3 {[%emt 0:00:20]} h5 {[%emt 0:00:34]} 27. Ne1 {[%emt 0:00:42]} (27. Bc3 $142) 27... Ra8 {[%emt 0:00:44] Black is more active.} 28. Nf3 {[%emt 0:01:13] [#]} (28. d5 $17) 28... Ra2 $1 $19 {[%emt 0:00:26]} 29. Be1 {[%emt 0:00:06] [#]} (29. Be3 {was called for.}) 29... Rd3 $1 {[%emt 0:02:19]} 30. Rb8+ {[%emt 0:00:44]} Kf7 {[%emt 0:00:09]} 31. Rd8 {[%emt 0:00:11]} (31. Rb7 $142) 31... Bh6 {[%emt 0:00:41] White must now prevent ...g4.} 32. Rb1 {[%emt 0:00:48]} (32. Rh8 $142 Kg7 33. Rxh6 Kxh6 34. Bc3) 32... g4 {[%emt 0:07:05] Black is clearly winning.} 33. hxg4 {[%emt 0:00:04]} hxg4 {[%emt 0:00:02]} 34. Nh4 {[%emt 0:00:43]} (34. Nh2 $142 f5 35. Rh8) 34... Rda3 {[%emt 0:01:02]} 35. Nf5 {[%emt 0:00:36]} Bg5 {[%emt 0:00:04] ...Bd3 is the strong threat. A strong pair of Bishops.} 36. Kh2 {[%emt 0:00:51]} Bd3 {[%emt 0:00:06][%csl LRb1,LRf5] Weighted Error Value: White=0.57/Black=0.17 (very precise)} 0-1

[Event "44th Chess Olympiad Open 2022"]
[Site "Chennai"]
[Date "2022.07.30"]
[Round "2.34"]
[White "Tan, Jun Ying"]
[Black "Druska, Juraj"]
[Result "1/2-1/2"]
[ECO "A58"]
[WhiteElo "2191"]
[BlackElo "2519"]
[Annotator "TA"]
[PlyCount "67"]
[EventDate "2022.07.29"]
[EventType "team-tourn"]
[EventCountry "IND"]
[SourceTitle "playchess.com"]
[Source "ChessBase"]
[SourceQuality "1"]
[WhiteTeam "Malaysia"]
[BlackTeam "Slovakia"]
[WhiteTeamCountry "MAS"]
[BlackTeamCountry "SVK"]
[TimeControl "40/5400+30:1800+30"]

{[%evp 9,67,26,63,66,52,49,39,22,32,17,40,22,37,12,18,-33,-9,-8,0,0,0,0,0,8,2,5,19,0,0,-7,0,0,0,0,34,11,11,31,32,17,30,32,25,25,29,32,26,8,8,15,16,3,1,1,25,0,3,0,20,0]} 1. d4 {[%emt 0:00:05]} Nf6 {[%emt 0:00:15]} 2. c4 {[%emt 0:00:04][%cal Bc2c4,Bc4b5,Bb5a6][%mdl 32]} c5 {[%emt 0:00:25]} 3. d5 {[%emt 0:00:06]} b5 {[%emt 0:00:20]} 4. cxb5 {[%emt 0:00:58]} a6 {[%emt 0:00:09]} 5. bxa6 {[%emt 0:00:07]} g6 {[%emt 0:00:53]} 6. Nc3 {[%emt 0:00:15][%cal Oa6a7] A58: Benko/Volga Gambit: Lines with 5 bxa6.} Bg7 {[%emt 0:00:10]} 7. Nf3 {[%emt 0:00:25]} O-O {[%emt 0:00:12]} 8. g3 {[%emt 0:00:24] White is slightly better.} Qa5 {[%emt 0:00:16]} 9. Bd2 {[%emt 0:01:07]} Nxa6 {[%emt 0:00:57]} 10. Bg2 {[%emt 0:03:02]} d6 {[%emt 0:00:18] Prevents Ne5.} 11. O-O {[%emt 0:01:03]} Qb6 {[%emt 0:00:07] [#]} 12. Qc1 $146 {[%emt 0:15:34]} (12. Bc1 $11) ({Predecessor:} 12. b3 Nc7 13. e4 e6 14. dxe6 fxe6 15. e5 Nfd5 16. Na4 Qc6 17. exd6 Qxd6 18. Rc1 {1-0 (44) Nenezic,M (2528)-Weishaeutel,M (2407) Chess.com INT 2022}) 12... Nb4 {[%emt 0:04:07]} 13. Bh6 {[%emt 0:02:27]} Nbxd5 {[%emt 0:14:54]} (13... Bb7 {is interesting.} 14. Bxg7 Kxg7 15. Nd2 Nbxd5 16. e4 Nc7) 14. Nxd5 {[%emt 0:02:58]} Nxd5 {[%emt 0:02:29]} 15. Bxg7 {[%emt 0:00:13]} Kxg7 {[%emt 0:00:03]} 16. Ne5 {[%emt 0:01:06]} dxe5 {[%emt 0:17:58]} 17. Bxd5 {[%emt 0:00:08]} Ra4 {[%emt 0:05:49]} 18. Qc3 {[%emt 0:06:14]} Rd4 {[%emt 0:21:45]} 19. Bf3 {[%emt 0:01:22]} Qd6 {[%emt 0:04:49]} 20. Rfc1 {[%emt 0:14:12]} Ba6 {[%emt 0:03:40]} 21. e3 {[%emt 0:03:51]} Rc4 {[%emt 0:00:32]} 22. Qe1 {[%emt 0:01:14]} (22. Qa5 $5 {[%cal Rc1d1]}) 22... Rb4 {[%emt 0:06:31]} 23. b3 {[%emt 0:03:05]} c4 {[%emt 0:04:01]} 24. bxc4 {[%emt 0:02:11]} Rc8 {[%emt 0:03:31]} 25. a4 {[%emt 0:11:01]} Rbxc4 {[%emt 0:02:10]} 26. Rxc4 {[%emt 0:00:13]} Rxc4 {[%emt 0:00:07]} 27. Be2 {[%emt 0:02:27]} Rc6 {[%emt 0:00:28]} 28. Bxa6 {[%emt 0:00:16]} (28. a5 {is more complex.} Qd5 29. Bf1 Rd6 30. h4) 28... Rxa6 $11 {[%emt 0:00:02][%mdl 4096] Endgame KQR-KQR} 29. a5 {[%emt 0:04:51]} Qc5 {[%emt 0:00:48]} 30. e4 {[%emt 0:02:14]} Qd4 {[%emt 0:00:55]} 31. Kg2 {[%emt 0:05:57][%cal Oe1e2]} Qc5 {[%emt 0:01:34]} 32. Kg1 {[%emt 0:03:11]} Qd4 {[%emt 0:00:29]} 33. Kg2 {[%emt 0:01:10][%cal Oe1e2]} Qc5 {[%emt 0:00:02]} 34. Kg1 {[%emt 0:00:29] Weighted Error Value: White=0.09 (flawless) /Black=0.07 (flawless)} 1/2-1/2

[Event "44th Chess Olympiad Open 2022"]
[Site "Chennai"]
[Date "2022.07.30"]
[Round "2.36"]
[White "Pelletier, Yannick"]
[Black "Al-Aqrabi, Saleh"]
[Result "1-0"]
[ECO "D02"]
[WhiteElo "2551"]
[BlackElo "2172"]
[Annotator "TA"]
[PlyCount "75"]
[EventDate "2022.07.29"]
[EventType "team-tourn"]
[EventCountry "IND"]
[SourceTitle "playchess.com"]
[Source "ChessBase"]
[SourceQuality "1"]
[WhiteTeam "Switzerland"]
[BlackTeam "Yemen"]
[WhiteTeamCountry "SUI"]
[BlackTeamCountry "YEM"]
[TimeControl "40/5400+30:1800+30"]

{[%evp 9,75,25,30,25,39,27,35,31,40,24,40,41,55,15,20,18,30,-8,-8,-25,29,-13,103,103,94,100,100,100,104,100,105,102,111,81,84,78,84,91,94,60,60,60,60,60,203,202,204,200,192,164,170,119,174,190,302,235,278,257,346,360,633,619,987,984,1028,971,1529,1166]} 1. Nf3 {[%emt 0:00:04]} d5 {[%emt 0:00:08]} 2. d4 {[%emt 0:00:18]} c6 {[%emt 0:00:10]} 3. Bf4 {[%emt 0:00:32]} Bf5 {[%emt 0:00:04]} 4. e3 {[%emt 0:04:27]} e6 {[%emt 0:00:12]} 5. c4 {[%emt 0:00:08][%cal Bc2c4,Bc4c5][%mdl 32]} Qb6 {[%emt 0:01:13]} 6. Qc1 {[%emt 0:02:13] D02: 1 d4 d5 2 Nf3 sidelines, including 2...Nf6 3 g3 and 2...Nf6 3 Bf4.} h6 {[%emt 0:01:03]} 7. Nc3 {[%emt 0:02:21]} Nd7 {[%emt 0:00:09]} 8. c5 {[%emt 0:03:12] White is slightly better.} Qd8 {[%emt 0:00:15]} 9. b4 {[%emt 0:01:19]} Ngf6 {[%emt 0:04:06]} 10. h3 {[%emt 0:00:53]} Be7 {[%emt 0:00:07] [#]} 11. Nd2 $146 {[%emt 0:10:19]} ({Predecessor:} 11. Be2 O-O 12. O-O Ne4 13. Na4 Bf6 14. Nb2 Ng5 15. Nd2 e5 16. dxe5 Nxe5 17. Bxe5 Bxe5 {1-0 (60) Karjakin,S (2786)-Nezad,H (2365) Tromsoe 2014}) 11... O-O {[%emt 0:03:40]} 12. Be2 {[%emt 0:00:08]} Re8 {[%emt 0:00:10]} 13. g4 {[%emt 0:10:59]} Bg6 {[%emt 0:01:23]} 14. Bg3 {[%emt 0:00:05]} Qc8 {[%emt 0:07:35]} (14... b6 $142) 15. h4 {[%emt 0:04:07]} Ne4 {[%emt 0:14:30] [#]} (15... b6 $11 {remains equal.}) 16. Ncxe4 $1 $16 {[%emt 0:09:25]} dxe4 {[%emt 0:06:13]} 17. Nc4 {[%emt 0:00:10]} b5 {[%emt 0:04:34] [#]} 18. Nd6 {[%emt 0:03:45]} Bxd6 {[%emt 0:00:02]} 19. Bxd6 {[%emt 0:00:09]} Qd8 {[%emt 0:09:38]} 20. a4 {[%emt 0:03:13]} a6 {[%emt 0:00:12]} 21. Qb2 {[%emt 0:06:47]} Nf6 {[%emt 0:00:36]} 22. h5 {[%emt 0:01:34]} Bh7 {[%emt 0:00:13]} 23. Kd2 {[%emt 0:01:20] White is more active.} Nd5 {[%emt 0:06:56]} 24. axb5 {[%emt 0:09:38]} axb5 {[%emt 0:00:03]} 25. Rxa8 {[%emt 0:00:08]} Qxa8 {[%emt 0:00:44]} 26. Ra1 $36 {[%emt 0:00:02][%cal Bh1a1,Ba1a7,Ba7b7][%mdl 2080] Black is under pressure.} Qc8 {[%emt 0:01:34]} (26... Qb7 $1 $14) 27. Ra7 $18 {[%emt 0:01:21]} f6 {[%emt 0:00:43]} 28. Qa3 {[%emt 0:05:35]} Kh8 {[%emt 0:00:18]} 29. Qa5 {[%emt 0:00:52]} Bg8 {[%emt 0:04:43]} 30. f3 {[%emt 0:03:31]} (30. Qa1 $18) 30... Bh7 {[%emt 0:17:58]} (30... exf3 $16 31. Bxf3 e5) 31. f4 {[%emt 0:07:27]} Qd8 {[%emt 0:00:00]} (31... Bg8 {was called for.} 32. Qa3 Bh7) 32. Rb7 {[%emt 0:02:08]} Qa8 {[%emt 0:03:10]} 33. Rd7 {[%emt 0:02:16]} Bg8 {[%emt 0:00:13]} 34. Bd1 {[%emt 0:00:39]} Qc8 $2 {[%emt 0:09:41]} (34... Qxa5 35. bxa5 Ra8) 35. Qa7 {[%emt 0:00:33] White is clearly winning.} Nxb4 {[%emt 0:00:30]} 36. Rxg7 {[%emt 0:00:27] Intending Rg6 and mate.} Qa8 {[%emt 0:00:07]} 37. g5 {[%emt 0:00:53]} hxg5 {[%emt 0:03:42]} 38. fxg5 {[%emt 0:00:08] Weighted Error Value: White=0.10 (very precise) /Black=0.43} 1-0